Cogmind - Beta 13 @@@ ROGUE MODE // 2024.04.22 @ 15:46:23 Player: lazy_engineer Result: Destroyed by G-34 Mercenary with Small Laser Performance ------------- Evolutions (0) 0 Regions Visited (2) 400 Robots Destroyed (15) 75 Value Destroyed (436) 436 Prototype IDs (0) 0 Alien Tech Used (0) 0 Bonus (0) 0 TOTAL SCORE: 911 Bonus ------- None Cogmind --------- Core Integrity 0/250 Matter 300/300 Energy 100/100 System Corruption 0% Temperature Cool (6) Movement Core (200) Ox3 Location -10/Mines Parts ------- > --- POWER (1) -------- (None) > --- PROPULSION (2) --- (None) > --- UTILITY (2) ------ Medium Storage Unit > --- WEAPON (2) ------- Hammer > --- INVENTORY (10) --- Light Nuclear Core Light Nuclear Core Medium Matter Pod (100) Improved Terrain Scanner Terrain Scan Processor Grenade Launcher Mining Laser Peak State ------------ > --- POWER ------------ Light Ion Engine > --- PROPULSION ------- Light Treads Wheel > --- UTILITY ---------- Medium Storage Unit Improved Terrain Scanner > --- WEAPON ----------- Assault Rifle Light Assault Rifle > --- INVENTORY -------- Light Nuclear Core Light Nuclear Core Aluminum Leg Aluminum Leg Wheel Medium Matter Pod Grenade Launcher Mining Laser Hammer [Rating: 10] Favorites ----------- Power Light Ion Engine Engine Light Ion Engine Propulsion Light Treads Treads Light Treads Wheel Wheel Utility Medium Storage Unit Device Improved Terrain Scanner Storage Medium Storage Unit Weapon Assault Rifle Energy Gun Medium Laser Ballistic Gun Assault Rifle Special Weapon Mining Laser Impact Weapon Hammer Build | -11 -10 -10 ------- Run | Yrd Mat Min Slots Evolved . | . . . Power . | . . . Propulsion . | . . . Utility . | . . . Weapon . | . . . Parts Attached 21 | 6 5 10 Power 2 | 1 . 1 Engine 2 | 1 . 1 Core . | . . . Reactor . | . . . Propulsion 6 | 2 1 3 Treads 2 | 1 1 . Leg . | . . . Wheel 4 | 1 . 3 Hover . | . . . Flight . | . . . Utility 4 | 1 2 1 Device 1 | . . 1 Storage 3 | 1 2 . Processor . | . . . Hackware . | . . . Protection . | . . . Artifact . | . . . Weapon 9 | 2 2 5 Energy Gun 2 | 1 1 . Energy Cannon . | . . . Ballistic Gun 4 | 1 1 2 Ballistic Cannon . | . . . Launcher . | . . . Special Weapon 1 | . . 1 Impact Weapon 2 | . . 2 Slashing Weapon . | . . . Piercing Weapon . | . . . Special Melee Weapon . | . . . Unidentified Prototypes . | . . . Parts Lost 9 | . 1 8 Power 1 | . . 1 Propulsion 4 | . . 4 Utility 1 | . . 1 Weapon 3 | . 1 2 Highest Loss Streak 5 | . 1 5 To Critical Strikes . | . . . Average Slot Usage (%) 96 | . 95 96 Engine 13 | . 14 13 Treads 16 | . 21 14 Wheel 10 | . 7 12 Device 5 | . . 7 Storage 22 | . 26 20 Energy Gun 3 | . 11 . Ballistic Gun 19 | . 13 21 Impact Weapon 3 | . . 4 Naked Turns . | . . . Heaviest Build 24 | 14 24 23 Greatest Support 40 | 10 40 40 Greatest Overweight (x) 4 | 1 2 4 Average Overweight (x) . | . 1 . Largest Inventory Capacity 10 | 8 10 10 Average Capacity 9 | 6 9 10 Most Carried 10 | 8 10 10 Average Carried 8 | 5 7 9 Final Capacity 10 | 8 10 10 Final Carried 10 | 6 10 7 Class Distribution -------------------- 90% | Mutant 9% | Scavenger-Mutant Dominant Class ---------------- Mutant | -10/Materials Mutant | -10/Mines Resources | -11 -10 -10 ----------- Run | Yrd Mat Min Matter Collected 649 | 245 138 266 Remotely . | . . . Salvage Created 608 | . 306 302 Parts 26 | . 15 11 Haulers Intercepted . | . . . Recyclers Shooed 1 | . 1 . Parts Field Recycled . | . . . Retrieved Matter . | . . . Parts Self-Destructed . | . . . Prevented . | . . . Kills | -11 -10 -10 ------- Run | Yrd Mat Min Combat Hostiles Destroyed 15 | . 7 8 Melee 1 | . . 1 Guns 13 | . 7 6 Classes Destroyed 4 | . 3 1 Recycler 1 | . 1 . Swarmer 3 | . 3 . Grunt 11 | . 4 7 Assembled 1 | . . 1 Best Kill Streak 5 | . 5 2 Combat Bots Only 4 | . 4 2 Max Kills in Single Turn 1 | . 1 1 Gunslinging . | . . . Exploded . | . . . Melee 1 | . . 1 Uniques/NPCs Destroyed . | . . . Combat | -11 -10 -10 -------- Run | Yrd Mat Min Hostile Shots Fired 134 | . 75 59 Missed 26 | . 15 11 Damage Taken 1192 | . 647 545 Core 258 | . 121 137 Absorbed by Shields . | . . . Core Remaining (%) 100 | 100 . . Volleys Fired 60 | . 30 30 Largest 2 | . 2 2 Hottest 100 | . 70 100 Shots Fired 100 | . 48 52 Gun 97 | . 48 49 Cannon . | . . . Launcher . | . . . Special 3 | . . 3 Kinetic 79 | . 30 49 Thermal 21 | . 18 3 Explosive . | . . . Electromagnetic . | . . . Robot Hit Streak 15 | . 14 15 Robot Miss Streak 4 | . 4 4 Penetration Max . | . . . Secondary Targets 1 | . 1 . Max Gunslinging Chain 1 | . 1 . Shots Hit Robots 76 | . 36 40 Core Hits 29 | . 14 15 Critical Kills . | . . . Critical Parts Destroyed 1 | . . 1 Critical Strikes 3 | . 2 1 Burn 2 | . 2 . Smash 1 | . . 1 Melee Attacks 25 | . . 25 Impact 25 | . . 25 Slashing . | . . . Piercing . | . . . Sneak Attacks . | . . . Combat Hostiles . | . . . Follow-up Attacks . | . . . Damage Inflicted 983 | . 446 537 Guns 811 | . 446 365 Cannons . | . . . Explosions . | . . . Melee 172 | . . 172 Ramming . | . . . Kinetic 647 | . 282 365 Thermal 164 | . 164 . Explosive . | . . . Electromagnetic . | . . . Impact 172 | . . 172 Slashing . | . . . Piercing . | . . . Highest Corruption . | . . . Average Corruption . | . . . Corruption Purged . | . . . Corruption Blocked . | . . . Overload Shots . | . . . Overflow Damage 47 | . . 47 Projectiles . | . . . Explosions . | . . . Melee 47 | . . 47 Knockbacks 1 | . . 1 Impact 1 | . . 1 Kinetic . | . . . Secondary . | . . . Self-Inflicted Damage . | . . . Shots . | . . . Rammed . | . . . Targets Rammed . | . . . Kicked . | . . . Crushed . | . . . Highest Temperature 160 | . 160 40 Average Temperature 43 | . 60 14 Received Heat Transfer 600 | . 315 285 Siege Activations . | . . . Robots Corrupted . | . . . Combat Hostiles . | . . . Parts Fried 1 | . . 1 Impact Corruptions 2 | . . 2 Robots Melted . | . . . Combat Hostiles . | . . . Parts Melted 1 | . 1 . Heat Transferred 629 | . 629 . Parts Sabotaged . | . . . Parts Stolen . | . . . Parts Stripped . | . . . Power Chain Reactions . | . . . Alert | -11 -10 -10 ------- Run | Yrd Mat Min Peak Influence 224 | . 224 147 Initial 87 | . . 87 Average 63 | . 80 61 Maximum Alert Level 1 | . 1 . Low Security (%) 96 | 100 86 100 Level 1 3 | . 13 . Level 2 . | . . . Level 3 . | . . . Level 4 . | . . . Level 5 . | . . . High Security . | . . . Max Security . | . . . Squads Dispatched 1 | . 1 . Investigation 1 | . 1 . Extermination . | . . . Reinforcement . | . . . Assault . | . . . Garrison . | . . . Intercept . | . . . Searches Triggered . | . . . Construction Impeded . | . . . Haulers Reinforced . | . . . Active Scanning Responses . | . . . Cargo Convoy Interrupts . | . . . Stealth | -11 -10 -10 --------- Run | Yrd Mat Min Distress Signals 1 | . 1 . Communications Jammed . | . . . Distress Signals . | . . . Times Spotted 22 | . 11 11 Peak Tracking Total 6 | . 6 3 Tactical Retreats 4 | . 2 2 Traps | -11 -10 -10 ------- Run | Yrd Mat Min Traps Triggered 1 | . 1 . Indirectly . | . . . Trap Hack Attempts . | . . . Triggered . | . . . Disarmed . | . . . Reprogrammed . | . . . Reused . | . . . Traps Extracted . | . . . Installed . | . . . Triggered . | . . . Machines | -11 -10 -10 ---------- Run | Yrd Mat Min Machines Disabled . | . . . Max in Single Turn . | . . . Machines Repaired . | . . . Machines Dismantled . | . . . Machines Sabotaged . | . . . Overloaded Fab Kills . | . . . Hacking | -11 -10 -10 --------- Run | Yrd Mat Min Machines Accessed 3 | . 3 . Terminals 3 | . 3 . Fabricators . | . . . Repair Stations . | . . . Recycling Units . | . . . Scanalyzers . | . . . Garrison Access . | . . . Total Hacks 9 | . 9 . Successful 5 | . 5 . Failed 4 | . 4 . Catastrophic . | . . . Database Lockouts . | . . . Manual 3 | . 3 . Terminals 9 | . 9 . Fabricators . | . . . Repair Stations . | . . . Recycling Units . | . . . Scanalyzers . | . . . Garrison Access . | . . . Terminal Hacks 4 | . 4 . Branch Access Points 1 | . 1 . Terminal Index 1 | . 1 . Hauler Manifests 1 | . 1 . Registered Components 1 | . 1 . Fabricator Hacks . | . . . Repair Station Hacks . | . . . Recycling Unit Hacks . | . . . Scanalyzer . | . . . Garrison Access Hacks . | . . . Unauthorized Hacks 1 | . 1 . Terminals 1 | . 1 . Operators 1 | . 1 . Fabricators . | . . . Repair Stations . | . . . Recycling Units . | . . . Scanalyzers . | . . . Garrison Access . | . . . Data Cores Recovered . | . . . Used . | . . . Hacking Detections 3 | . 3 . Full Trace Events . | . . . Feedback Events . | . . . Feedback Blocked . | . . . Robot Schematics Acquired . | . . . Robots Built . | . . . Authchips . | . . . Time . | . . . Total Robot Build Rating . | . . . Part Schematics Acquired . | . . . Parts Built . | . . . Authchips . | . . . Time . | . . . Total Part Build Rating . | . . . Parts Repaired . | . . . Time . | . . . Parts Recycled . | . . . Recycled Matter . | . . . Retrieved Matter . | . . . Retrieved Components . | . . . Parts Scanalyzed . | . . . Part Schematics Acquired . | . . . Parts Damaged . | . . . Bothacking | -11 -10 -10 ------------ Run | Yrd Mat Min Used RIF Installer . | . . . Robots Hacked . | . . . Non-combat . | . . . Combat . | . . . Robot Hacks Applied . | . . . Relay Couplers Released . | . . . Fabnet Peak Effective % . | . . . Robots Rewired . | . . . Allies Hacked . | . . . Hacks Repelled . | . . . Allies | -11 -10 -10 -------- Run | Yrd Mat Min Total Allies . | . . . Largest Group . | . . . Highest-Rated Group . | . . . Highest-Rated Ally . | . . . Total Orders . | . . . Ally Attacks . | . . . Total Damage . | . . . Kills . | . . . Allies Corrupted . | . . . Allies Melted . | . . . Intel | -11 -10 -10 ------- Run | Yrd Mat Min Robot Analysis Total . | . . . Derelict Logs Recovered . | . . . Drone Launches . | . . . Drone Recoveries . | . . . Exploration | -11 -10 -10 ------------- Run | Yrd Mat Min Turns Passed 1166 | 57 294 815 Spaces Moved 502 | 42 166 294 Core 10 | 9 . 1 Treads 139 | . 42 97 Legs . | . . . Wheels 353 | 33 124 196 Hover . | . . . Flight . | . . . Fastest Speed 50 | 50 95 80 Average Speed 114 | 80 120 115 Slowest Speed 250 | 95 160 250 Overloaded Moves . | . . . Propulsion Burnouts . | . . . Robots Hopped . | . . . Cave-ins Triggered . | . . . Exploration Rate (%) 24 | 4 30 40 Regions Visited 2 Branch Regions 1 Pre-discovered Areas . | . . . Known Exits Taken 1 | . 1 . Unknown Exits Taken 1 | 1 . . Scrap Searched 1 | . . 1 Spaces Dug . | . . . Terrain Destroyed . | . . . Melee . | . . . Projectile . | . . . AOE . | . . . Terrain Rammed . | . . . Walls Destroyed . | . . . Machines Disabled . | . . . Actions | -11 -10 -10 --------- Run | Yrd Mat Min Total 953 | 64 214 675 Wait 313 | 7 5 301 Move 500 | 41 165 294 Hop . | . . . Pick Up 24 | 10 7 7 Fast Attach 3 | 2 . 1 Attach 14 | 4 4 6 Detach 1 | . 1 . Swap 4 | . 1 3 Drop 9 | . 1 8 Fire 60 | . 30 30 Melee 25 | . . 25 Ram . | . . . Kick . | . . . Crush . | . . . Escape Stasis . | . . . Rewire . | . . . Trap . | . . . Miscellaneous . | . . . Route ------- -11/Scrapyard -10/Materials -10/Mines History --------- Turn | Location | Event 8 | -11/Scrapyard | Discovered new exit (range 14) 58 | -11/Scrapyard | Entered Materials 144 | -10/Materials | Identified exit to Mines 322 | -10/Materials | Build established: Mutant 352 | -10/Materials | Entered Mines 362 | -10/Mines | Met a Derelict bent on vengeance 536 | -10/Mines | Core integrity fell below 50% 580 | -10/Mines | Excavation squad dispatched 580 | -10/Mines | A large section of the Mines collapsed 830 | -10/Mines | Excavation squad dispatched 1080 | -10/Mines | Excavation squad dispatched 1151 | -10/Mines | Core integrity fell below 20% 1167 | -10/Mines | Destroyed by G-34 Mercenary with Small Laser Last Messages --------------- 01028_ G-34 Mercenary destroyed. 01030_ Acquired 23 matter. 01035_ T-07 Excavator is excavating. 01049_ Acquired 10 matter. 01072_ Assault Rifle destroyed. 01075_ G-34 Mercenary destroyed. 01080_ ALERT: Derelict activity in mines confirmed. Dispatching additional escorted excavation squad. 01118_ Acquired 30 matter. 01146_ Lgt. Ion Engine destroyed. 01148_ Wheel destroyed. 01149_ G-34 Mercenary suffers critical hit (Smash). 01149_ Destroyed Aluminum Leg. 01149_ G-34 Mercenary system corrupted by crushing effect. 01149_ G-34 Mercenary knocked back. 01150_ G-34 Mercenary system terminally corrupted. 01150_ Heat Sink fried. 01153_ Lgt. Assault Rifle destroyed. 01159_ Wheel destroyed. 01164_ Imp. Terrain Scanner destroyed. Map ----- +----------------------------------------------------+ | ???????????????????????????????????????????? | | ??????????????????#????????????????????????? | | ???????????????????????????????????????????? | | ????????????????##?????????????????????????? | | ?????????#?????????????????????????????????? | | ??????????????????? ???????????????????????? | | ??????????#????????????????????????????????? | | ?????????????????????? ?"??????????????????? | | ???????????????????????????????????????????? | | ????????#??????????????????????????????????? | | #??????????????#????????????#??????????????? | | ?????#??????????????????????????#??????????? | | ??####??????####### #?????????#????????????? | | ?## ##????## ####???????????????????? | | ## ###### %### #???????????????????? | | # ## #????# #?#?????????????????? | | ## ##???# #???????#???????????? | | ### ##??# ##??????????????????? | | ##?# % #### ##??????????????????? | | ##??# #??###?????????????? | | #???# ## #??# #?????????????? | | ????# #### #### ### #?????????????? | | ????####?## #####?## ## #?????????????? | | ##???#???# ##?????## g #?????????????? | | ##?????# #?????## % ##????????????? | | #?#?? #?????# @ #??????????#?? | | #?? #????# ##g ??????? | | ##?? #????# #### #???? | | ##??? % ##??#?# ##?#?# #???? | | #???? % #?????# ?????## ???? | | ?????? ??#???# ??????? ## ????? | | ?#???? ??????? ??????## ##?# ????? | | ???????? ????????????????####???? ????? | | #????????? ??????????????#?????????? ?????? | | #??????????????????????????????????????????? | | #????????????????????##???????????????????? | | #????????????????????????????????????????? | | *% ?????????????????????????????????????? | | ! % #???????????????????????????????????? | | ########??????????????#????????????????????? | | ????????#??????????????????????????????????? | | #??????????????????????????????????????????? | | ???????????????????????????????????????????? | | ? ?????????????????????????????????????????? | | ???????????????????????????????????????????? | | ???????????????????????????????????????????? | | ???????????????????????????????????????????? | | ???????????????????????????????????????????? | | ???????????????????????????????????????????? | | ???????????????????????????????????????????? | +----------------------------------------------------+ Best States ------------- Heat Dissipation 25 Energy Generation 10 Energy Capacity 250 Matter Stores 300 Matter Capacity 300 Sight Range 16 Terrain Scan Range 16 Terrain Scan Density 10 Evasion (%) 50 Recoil Reduction 2 Item Schematics ----------------- None Robot Schematics ------------------ None Fabricated ------------ Nothing Alien Tech Used ----------------- None Achievements -------------- None Challenges ------------ None Game ------ Seed AuthchipDisposableFlakker Manual? 0 Play Time 00:09:37 Cumulative 35.7 hours Start 2024.04.22 @ 15:37:47 End 2024.04.22 @ 15:46:23 Sessions 1 Manual Loads 0 Difficulty Rogue Special Mode None Game No. 75 Rogue 75 Adventurer 0 Explorer 0 Win Type - Total 0 Types 0/0/0/0/0/0/0/0/0 Lore% 24 Gallery% 28 Achievement% 25 Wizard Run 0 Options --------- Layout 0 ASCII 0 Keyboard 0 Movement Mouse Keybinds 0 Fullscreen 1 Font 24/Smallcaps Map View 76x50 Zoom Use 0% Tactical HUD 1 Map Filters NONE Filters NONE Steam 1 RUN: 5a0e4eb4-1389-476b-b3f3-c9b0f8e05f9d